{"text_format":"1","workbook":"xlsx","n_sheets":4,"sheets":["ОТЧЕТ","ФОРМА ЗАПОЛНЕНИЯ","АКТ","ДАННЫЕ"],"not_rendered":{"charts":0,"images":0,"macros":1,"external_links":0,"defined_names":1,"comments":0,"pivot_tables":0},"unopened":[],"bounds":{"document_bytes":16777216,"sheet_cells":100000,"rows_first":2000,"rows_last":500,"rows_between":2000,"halvings":0,"cell_chars":16384,"cell_head_chars":4096},"cells_cut":0,"cells_raw":0,"read":"whole","date_system":"1900"}

{"sheet":"ОТЧЕТ","index":0,"n_rows":13,"n_cols":17,"rows_kept":13,"cut":false,"hidden":false,"merged":[[1,7,1,8],[1,9,1,10]]}
[null,"ЖУРНАЛ ПО СОПРОВОЖДЕНИЮ"]
[null,"№ П/П","ДАННЫЕ КОНТЕЙНЕРА","КОМПАНИЯ","ЧИСЛО","МЕСЯЦ","ГОД","НАЧАЛО            ЧАСЫ  /  МИНУТЫ",null,"ОКОНЧАНИЕ       ЧАСЫ  /  МИНУТЫ",null,"ПУНКТ ОТПРАВЛЕНИЯ","ПУНКТ НАЗНАЧЕНИЯ","ГОС.НОМЕР АВТО","СТАРШИЙ СОПРОВОЖДАЮЩИЙ","ВОДИТЕЛЬ","ТЕЛ.:"]
[null,1,null,"WG",11,"ИЮЛЬ",2013,15,28,null,null,"ул.НАБЕРЕЖНАЯ ИРКУТА","ст.БАТАРЕЙНАЯ",852,"Федотов М.Ю.","Уваров Д.С.",89041536911]
[null,2,null,"ПРОМТРАНС",11,"ИЮЛЬ",2013,15,28,null,null,"ул.НАБЕРЕЖНАЯ ИРКУТА","ул.НАБЕРЕЖНАЯ ИРКУТА",null,"Чернавский М.В.","Уваров Д.С.",89041536911]
[null,3,null,"ПРОМТРАНС",11,"ИЮЛЬ",2013,15,28,null,null,"ул.НАБЕРЕЖНАЯ ИРКУТА","ул.НАБЕРЕЖНАЯ ИРКУТА",654,"Чернавский М.В.","Уваров Д.С.",89041536911]
[null,4,null,"WG",11,"ИЮЛЬ",2013,15,28,null,null,"ст.БАТАРЕЙНАЯ","ул.МЕДВЕДЕВА, 1",null,"Федотов М.Ю.","Уваров Д.С.",89041536911]
[null,5,null,"ПРОМТРАНС",11,"ИЮЛЬ",2013,15,28,null,null,"ул.НАБЕРЕЖНАЯ ИРКУТА","ул.Р.ЛЮКСЕМБУРГ, 220",null,"Чернавский М.В.","Уваров Д.С.",89041536911]
[null,6,null,"ПРОМТРАНС",11,"ИЮЛЬ",2013,15,28,null,null,"ул.НАБЕРЕЖНАЯ ИРКУТА","ул.Р.ЛЮКСЕМБУРГ, 220",222,"Чернавский М.В.","Уваров Д.С.",712020]
[null,7,"ERYT 8989897","ИРТЭК",16,"ДЕКАБРЬ",2013,3,28,null,null,"ст.БАТАРЕЙНАЯ","ул.Р.ЛЮКСЕМБУРГ, 220",138,"Чернавский М.В.","Габов",712020]
[null,8,"RZDY 0088993","WG",15,"АПРЕЛЬ",2013,12,12,null,null,"ст.ГОРКА, 5","ул.Р.ЛЮКСЕМБУРГ, 220","Р008УУ","Чернавский М.В.","Грицкевич",757052]
[null,9,"RZDU 8855993","ИРТЭК",11,"МАРТ",2013,9,55,null,null,"ст.БАТАРЕЙНАЯ","ул.Р.ЛЮКСЕМБУРГ, 220","Р085ХХ","Чернавский М.В.","Иванов И.И.",89041536911]
[null,10,"лшувшгкршг","ПРОМТРАНС",11,"ФЕВРАЛЬ",2013,5,5,null,null,"ул.НАБЕРЕЖНАЯ ИРКУТА","ул.Р.ЛЮКСЕМБУРГ, 220","А888АА","Чернавский М.В.","Вова",712020]
[null,11,"HDMY 5566778","БЭК",2,"ФЕВРАЛЬ",2013,2,20,null,null,"ст.БАТАРЕЙНАЯ","ул.Р.ЛЮКСЕМБУРГ, 220","Р555РР","Васильев А.В.","Коркин В.В.",83956321746]

{"sheet":"ФОРМА ЗАПОЛНЕНИЯ","index":1,"n_rows":24,"n_cols":7,"rows_kept":24,"cut":false,"hidden":false,"merged":[[3,2,3,4],[13,2,13,4],[14,2,14,4],[15,2,15,6],[17,2,17,6],[19,2,19,6],[20,2,20,6],[21,2,21,6],[23,2,23,6],[9,2,9,6],[11,2,11,6],[18,2,18,6]]}
[]
[]
[]
["КОМПАНИЯ:"]
[]
["ДАТА:"]
[null,null,"число",null,"месяц",null,"год"]
["ВЫЕЗД (ВРЕМЯ):"]
[]
["ПУНКТ ОТПРАВЛЕНИЯ:"]
[]
["ПУНКТ НАЗНАЧЕНИЯ:"]
[]
["АВТОМОБИЛЬ:"]
[null,null,"марка",null,null,null,"гос.номер"]
["ДАННЫЕ КОНТЕЙНЕРА:",null,"FYLH 1234567"]
[]
["Ф.И.О.:"]
[null,null,"старший сопровождающий"]
["Ф.И.О.:"]
[null,null,"охранник"]
["ВОДИТЕЛЬ:"]
[null,null,null,null,"ф.и.о."]
["тел.:"]

{"sheet":"АКТ","index":2,"n_rows":58,"n_cols":97,"rows_kept":58,"cut":false,"hidden":false,"merged":[[1,37,1,42],[1,49,1,52],[1,55,1,66],[1,68,1,74],[10,20,10,46],[12,16,12,26],[12,39,12,48],[12,63,12,72],[5,4,5,7],[5,20,5,26],[5,35,5,38],[5,49,5,53],[9,20,9,46],[27,37,27,54],[27,76,27,99],[14,20,14,31],[17,32,17,57],[17,61,17,81],[19,54,19,104],[20,2,20,104],[21,54,21,73],[21,77,21,95],[22,36,22,106],[23,52,23,106],[24,59,24,106],[26,27,26,54],[26,80,26,107],[34,2,34,106],[37,53,37,79],[38,4,38,7],[38,10,38,18],[38,20,38,26],[38,35,38,38],[38,49,38,53],[57,14,57,49],[57,52,57,88],[0,0,0,78],[49,20,49,43],[49,90,49,107],[55,2,55,106],[1,78,1,90],[5,10,5,19],[13,23,13,43],[4,44,4,71],[40,49,40,68],[40,72,40,91],[42,38,42,63],[42,65,42,85],[48,27,48,54],[48,80,48,107]]}
["АКТ СОПРОВОЖДЕНИЯ ТМЦ"]
[null,null,null,null,null,null,null,null,null,null,null,null,null,null,null,null,null,null,null,null,null,null,null,null,null,null,null,"АКТ №",null,null,null,null,null,null,null,null,null,null,null,null,null,null,null,null,"от",null,null,"\"",null,{"$f":"'ФОРМА ЗАПОЛНЕНИЯ'!C6","v":0},null,null,null,"\"",null,{"$f":"'ФОРМА ЗАПОЛНЕНИЯ'!E6","v":0},null,null,null,null,null,null,null,null,null,null,null,null,2013,null,null,null,null,null,null,null,null,null,{"$f":"'ФОРМА ЗАПОЛНЕНИЯ'!C4","v":0}]
[null,null,11,null,null,null,null,null,null,null,null,null,null,null,null,null,null,null,null,null,"Приема-передачи груза при сопровождении автомобильного транспорта"]
[]
[null,null,"Место и время принятия груза под охрану:",null,null,null,null,null,null,null,null,null,null,null,null,null,null,null,null,null,null,null,null,null,null,null,null,null,null,null,null,null,null,null,null,null,null,null,null,null,null,null,null,null,{"$f":"'ФОРМА ЗАПОЛНЕНИЯ'!C10","v":0}]
[null,null,"\"",null,{"$f":"AX2","v":0},null,null,null,"\"",null,{"$f":"BD2","v":0},null,null,null,null,null,null,null,null,null,{"$f":"BQ2","v":2013},null,null,null,null,null,null,"г.",null,null,"в",null,null,"\"",null,{"$f":"'ФОРМА ЗАПОЛНЕНИЯ'!C8","v":0},null,null,null,"\"",null,"часов",null,null,null,null,null,"\"",null,{"$f":"'ФОРМА ЗАПОЛНЕНИЯ'!E8","v":0},null,null,null,null,"\"",null,null,"минут"]
[]
[null,null,"Настоящий акт удостоверяет факт приема/передачи груза находящегося в контейнере, для"]
[null,null,"вооруженного сопровождения по маршруту:"]
[null,null,"пункт загрузки:",null,null,null,null,null,null,null,null,null,null,null,null,null,null,null,null,null,{"$f":"AS5","v":0}]
[null,null,"пункт выгрузки:",null,null,null,null,null,null,null,null,null,null,null,null,null,null,null,null,null,{"$f":"'ФОРМА ЗАПОЛНЕНИЯ'!C12","v":0}]
[]
[null,null,"Автомобиль:",null,null,null,null,null,null,null,null,null,null,null,null,null,{"$f":"'ФОРМА ЗАПОЛНЕНИЯ'!C14","v":0},null,null,null,null,null,null,null,null,null,null,null,"гос.номер",null,null,null,null,null,null,null,null,null,null,{"$f":"'ФОРМА ЗАПОЛНЕНИЯ'!G14","v":0},null,null,null,null,null,null,null,null,null,null,"полуприцеп"]
[null,null,"Номер контейнера:",null,null,null,null,null,null,null,null,null,null,null,null,null,null,null,null,null,null,null,null,{"$f":"'ФОРМА ЗАПОЛНЕНИЯ'!C16","v":"FYLH 1234567"}]
[null,null,"Номер пломбы:"]
[]
[null,null,null,"Ф.И.О. Представителя Заказчика( Водителя - экспедитора или иного уполномоченного лица),"]
[null,null,null,"сдавшего груз под охрану:"]
[null,null,null,null,null,null,null,null,null,null,null,null,null,null,null,null,null,null,null,null,null,null,null,null,null,null,null,null,null,null,null,null,null,null,null,null,null,null,null,null,null,null,null,null,null,null,null,null,null,null,null,null,null,null,null,null,null,null,null,null,null,null,null,null,null,null,null,"(подпись)"]
[null,null,null,"Паспортные данные Представителя Заказчика:"]
[]
[null,null,null,"Ф.И.О охранников, принявших груз под охрану:",null,null,null,null,null,null,null,null,null,null,null,null,null,null,null,null,null,null,null,null,null,null,null,null,null,null,null,null,null,null,null,null,null,null,null,null,null,null,null,null,null,null,null,null,null,null,null,null,null,null,{"$f":"'ФОРМА ЗАПОЛНЕНИЯ'!C18","v":0},null,null,null,null,null,null,null,null,null,null,null,null,null,null,null,null,null,null,null,null,",",null,{"$f":"'ФОРМА ЗАПОЛНЕНИЯ'!C20","v":0}]
[null,"Паспортные данные охранников:",null,null,null,null,null,null,null,null,null,null,null,null,null,null,null,null,null,null,null,null,null,null,null,null,null,null,null,null,null,null,null,null,null,null,{"$f":"VLOOKUP(BC22,ДАННЫЕ!D6:E8,2)","v":{"$error":"#N/A"}}]
[null,"Номер служебных удостоверений охранников:",null,null,null,null,null,null,null,null,null,null,null,null,null,null,null,null,null,null,null,null,null,null,null,null,null,null,null,null,null,null,null,null,null,null,null,null,null,null,null,null,null,null,null,null,null,null,null,null,null,null,"Ир 12558 от 15 Июля 2009г"]
[null,"Номер командировочных удостоверений охранников:"]
[]
[null,null,null,null,"Груз под пломбой №:",null,null,null,null,null,null,null,null,null,null,null,null,null,null,null,null,null,null,null,null,null,null,null,null,null,null,null,null,null,null,null,null,null,null,null,null,null,null,null,null,null,null,null,null,null,null,null,null,null,null,null,null,"Груз под пломбой №:"]
[null,null,null,null,"сдал Представитель Заказчика:",null,null,null,null,null,null,null,null,null,null,null,null,null,null,null,null,null,null,null,null,null,null,null,null,null,null,null,null,null,null,null,null,null,null,null,null,null,null,null,null,null,null,null,null,null,null,null,null,null,null,null,null,"принял Охранник:",null,null,null,null,null,null,null,null,null,null,null,null,null,null,null,null,null,null,{"$f":"BC22","v":0}]
[null,null,null,null,null,null,null,"(Ф.И.О. подпись Представителя Заказчика)",null,null,null,null,null,null,null,null,null,null,null,null,null,null,null,null,null,null,null,null,null,null,null,null,null,null,null,null,null,null,null,null,null,null,null,"М.П.",null,null,null,null,null,null,null,null,null,null,null,null,null,null,null,null,"(Ф.И.О. подпись Представителя Заказчика)",null,null,null,null,null,null,null,null,null,null,null,null,null,null,null,null,null,null,null,null,null,null,null,null,null,null,null,null,null,null,null,null,null,null,null,"М.П."]
[]
[]
[null,null,"Отметка о фактическом присутствии охранника на складе (ставится работником склада"]
[null,null,"грузоотправителя)"]
[null,null,"Наличие указанных сотрудников охраны в момент передачи груза под охрану подтверждаю:"]
[]
[null,null,null,null,null,"(Должность)",null,null,null,null,null,null,null,null,null,null,null,null,null,null,null,null,null,null,null,null,null,null,"(Ф.И.О. подпись)",null,null,null,null,null,null,null,null,null,null,null,null,null,null,null,null,null,null,null,null,null,null,null,null,null,null,null,null,null,null,null,null,null,null,null,null,null,null,null,"(место для штампа)"]
[]
[null,null,"Место и время сдачи груза из под охраны:",null,null,null,null,null,null,null,null,null,null,null,null,null,null,null,null,null,null,null,null,null,null,null,null,null,null,null,null,null,null,null,null,null,null,null,null,null,null,null,null,null,null,null,null,null,null,null,null,null,null,{"$f":"U11","v":0}]
[null,null,"\"",null,{"$f":"AX2","v":0},null,null,null,"\"",null,{"$f":"BD2","v":0},null,null,null,null,null,null,null,null,null,{"$f":"BQ2","v":2013},null,null,null,null,null,null,"г.",null,null,"в",null,null,"\"",null,null,null,null,null,"\"",null,"часов",null,null,null,null,null,"\"",null,null,null,null,null,null,"\"",null,null,"минут"]
[]
[null,null,null,"Ф.И.О охранников, сдавших груз из под охраны:",null,null,null,null,null,null,null,null,null,null,null,null,null,null,null,null,null,null,null,null,null,null,null,null,null,null,null,null,null,null,null,null,null,null,null,null,null,null,null,null,null,null,null,null,null,{"$f":"BC22","v":0},null,null,null,null,null,null,null,null,null,null,null,null,null,null,null,null,null,null,null,null,",",null,{"$f":"BZ22","v":0}]
[null,null,null,"Ф.И.О. Представителя Заказчика( Водителя - экспедитора или иного уполномоченного лица),"]
[null,null,null,"принявшего груз из под охраны:"]
[null,null,null,null,null,null,null,null,null,null,null,null,null,null,null,null,null,null,null,null,null,null,null,null,null,null,null,null,null,null,null,null,null,null,null,null,null,null,null,null,null,null,null,null,null,null,null,null,null,null,null,null,null,null,null,null,null,null,null,null,null,null,null,null,null,null,null,null,null,null,null,"(подпись)"]
[]
[null,null,"Претензий к сохранности пломбы, целостности тента/контейнера не имею, в действиях охранника"]
[null,null,"нарушений нет."]
[]
[null,null,null,null,"Груз под пломбой №:",null,null,null,null,null,null,null,null,null,null,null,null,null,null,null,null,null,null,null,null,null,null,null,null,null,null,null,null,null,null,null,null,null,null,null,null,null,null,null,null,null,null,null,null,null,null,null,null,null,null,null,null,"Груз под пломбой №:"]
[null,null,null,null,"сдал Охранник:",null,null,null,null,null,null,null,null,null,null,null,null,null,null,null,{"$f":"BC22","v":0},null,null,null,null,null,null,null,null,null,null,null,null,null,null,null,null,null,null,null,null,null,null,null,null,null,null,null,null,null,null,null,null,null,null,null,null,"принял Представитель Заказчика:"]
[null,null,null,null,null,null,null,"(Ф.И.О. подпись Представителя Заказчика)",null,null,null,null,null,null,null,null,null,null,null,null,null,null,null,null,null,null,null,null,null,null,null,null,null,null,null,null,null,null,null,null,null,null,null,"М.П.",null,null,null,null,null,null,null,null,null,null,null,null,null,null,null,null,"(Ф.И.О. подпись Представителя Заказчика)",null,null,null,null,null,null,null,null,null,null,null,null,null,null,null,null,null,null,null,null,null,null,null,null,null,null,null,null,null,null,null,null,null,null,null,"М.П."]
[]
[null,null,"Отметка о фактическом присутствии охранника на складе (ставится работником склада"]
[null,null,"грузоотправителя)"]
[null,null,"Наличие указанных сотрудников охраны в момент передачи груза под охрану подтверждаю:"]
[]
[null,null,null,null,null,"(Должность)",null,null,null,null,null,null,null,null,null,null,null,null,null,null,null,null,null,null,null,null,null,null,"(Ф.И.О. подпись)",null,null,null,null,null,null,null,null,null,null,null,null,null,null,null,null,null,null,null,null,null,null,null,null,null,null,null,null,null,null,null,null,null,null,null,null,null,null,null,"(место для штампа)"]
[null,null,null,"Водитель:",null,null,null,null,null,null,null,null,null,null,{"$f":"'ФОРМА ЗАПОЛНЕНИЯ'!C22","v":0},null,null,null,null,null,null,null,null,null,null,null,null,null,null,null,null,null,null,null,null,null,null,null,null,null,null,null,null,null,null,null,null,null,null,null,null,null,{"$f":"'ФОРМА ЗАПОЛНЕНИЯ'!C24","v":0}]

{"sheet":"ДАННЫЕ","index":3,"n_rows":16,"n_cols":8,"rows_kept":16,"cut":false,"hidden":false,"merged":[[2,3,2,4],[3,3,3,4]]}
[]
[]
["№","КОМПАНИЯ","МЕСЯЦ","ОХРАНА",null,"МАРКА","ПУНКТ ОТПРАВЛЕНИЯ","ПУНКТ НАЗНАЧЕНИЯ"]
[1,"БЭК","ЯНВАРЬ","Данные на сотрудников",null,"МАЗ","ст.БАТАРЕЙНАЯ","ул.Р.ЛЮКСЕМБУРГ, 220"]
[2,"WG","ФЕВРАЛЬ","Ф.И.О.","ПАСПОРТ","КАМАЗ","ул.НАБЕРЕЖНАЯ ИРКУТА","ул.НАБЕРЕЖНАЯ ИРКУТА"]
[3,"ПРОМТРАНС","МАРТ","Васильев А.В.","2509 №291450  Отделом УФМС России по Иркутской обл. В Октябрьском р-не г.Иркутска 03.11.2009г.","Scania","ст.ГОРКА, 5","ул.МЕДВЕДЕВА, 1"]
[4,"ИРТЭК","АПРЕЛЬ","Чернавский М.В.","2506 №764817 выдан УВД Свердловского р-на г. Иркутска 10.01.2007г.","Volvo"]
[null,null,"МАЙ","Федотов М.Ю.","2510 №489229 Отделом УФМС России по Иркутской обл. В Октябрьском р-не г.Иркутска 31.01.2011г.","Mercedes"]
[null,null,"ИЮНЬ",null,null,"Renault"]
[null,null,"ИЮЛЬ",null,null,"MAN"]
[null,null,"АВГУСТ",null,null,"HINO"]
[null,null,"СЕНТЯБРЬ",null,null,"FUSO"]
[null,null,"ОКТЯБРЬ",null,null,"HOWO"]
[null,null,"НОЯБРЬ",null,null,"Toyota"]
[null,null,"ДЕКАБРЬ",null,null,"Nissan"]
[null,null,null,null,null,"Mitsubishi"]